fUSD/lending_fUSD_20260115
["ID","MTS","AMOUNT","RATE_DAILY","PERIOD"]
[402086953,1768515052894,-790.73,0.00035616,10]
[402086954,1768515052904,-500.0,0.00035616,10]
[402086955,1768515052913,-500.0,0.00035616,10]
[402086956,1768515052923,-500.0,0.00035616,10]
[402086957,1768515052932,-1539.51,0.00035616,10]
[402086958,1768515052941,-500.0,0.00035616,10]
[402086959,1768515052952,-500.0,0.00035616,10]
[402086960,1768515052962,-891.58,0.00035616,10]
[402086961,1768515052973,-500.0,0.00035616,10]
[402086962,1768515052982,-558.47,0.00035616,10]
[402086963,1768515052994,-655.46,0.00035616,10]
[402086964,1768515053003,-500.0,0.00035616,10]
[402086965,1768515053012,-576.55,0.00035616,10]
[402086966,1768515053022,-500.0,0.00035616,10]
[402086967,1768515053032,-500.0,0.00035616,10]
[402086968,1768515053043,-500.0,0.00035616,10]
[402086969,1768515053053,-844.94,0.00035616,10]
[402086970,1768515053064,-500.0,0.00035616,10]
[402086971,1768515053073,-500.0,0.00035616,10]
[402086972,1768515053083,-962.67,0.00035616,10]
[402086973,1768515053092,-598.28607407,0.00035616,10]
[402086974,1768515053102,-500.0,0.00035616,10]
[402086975,1768515053111,-500.0,0.00035616,10]
[402086976,1768515053120,-500.0,0.00035616,10]
[402086977,1768515053130,-1119.22,0.00035616,10]
[402086978,1768515053139,-500.0,0.00035616,10]
[402086979,1768515053149,-802.1,0.00035616,10]
[402086980,1768515053158,-1012.73,0.00035616,10]
[402086981,1768515053167,-500.0,0.00035616,10]
[402086982,1768515053177,-512.62541215,0.00035616,10]
[402086983,1768515053186,-500.0,0.00035616,10]
[402086984,1768515053195,-585.92,0.00035616,10]
[402086985,1768515053204,-500.0,0.00035616,10]
[402086986,1768515053214,-921.12,0.00035616,10]
[402086987,1768515053223,-500.0,0.00035616,10]
[402086988,1768515053233,-571.18,0.00035616,10]
[402086989,1768515053243,-500.0,0.00035616,10]
[402086990,1768515053252,-500.0,0.00035616,10]
[402086991,1768515053262,-230.41576543,0.00035616,10]
[402086992,1768515053272,-1549.1,0.00035616,10]
[402086993,1768515053281,-612.5214511,0.00035616,10]
[402086994,1768515053291,-500.0,0.00035616,10]
[402086995,1768515053300,-851.49,0.00035616,10]
[402086996,1768515053310,-500.0,0.00035616,10]
[402086997,1768515053320,-500.0,0.00035616,10]
[402086998,1768515053329,-500.0,0.00035616,10]
[402086999,1768515053339,-620.92,0.00035616,10]
[402087000,1768515053349,-502.46,0.00035616,10]
[402087001,1768515053359,-500.0,0.00035616,10]
[402087002,1768515053369,-994.04,0.00035616,10]
[402087003,1768515053378,-1011.61,0.00035616,10]
[402087004,1768515053388,-500.0,0.00035616,10]
[402087005,1768515053397,-500.0,0.00035616,10]
[402087006,1768515053407,-571.74551698,0.00035616,10]
[402087007,1768515053416,-643.34748755,0.00035616,10]
[402087008,1768515053426,-500.0,0.00035616,10]
[402087009,1768515053436,-1000.0,0.00035616,10]
[402087010,1768515053446,-500.0,0.00035616,10]
[402087011,1768515053455,-500.0,0.00035616,10]
[402087012,1768515053465,-300.0,0.00035616,10]
[402087013,1768515053475,-815.84,0.00035616,10]
[402087014,1768515053485,-601.58088791,0.00035616,10]
[402087015,1768515053495,-913.05,0.00035616,10]
[402087016,1768515053504,-200.0,0.00035616,120]
[402087017,1768515053514,-563.86,0.00035616,10]
[402087018,1768515053524,-500.0,0.00035616,10]
[402087019,1768515053534,-500.0,0.00035616,10]
[402087020,1768515053544,-500.0,0.00035616,10]
[402087021,1768515053554,-632.01805072,0.00035616,10]
[402087022,1768515053563,-500.0,0.00035616,10]
[402087023,1768515053572,-500.0,0.00035616,10]
[402087024,1768515053582,-500.0,0.00035616,10]
[402087025,1768515053591,-500.0,0.00035616,10]
[402087026,1768515053601,-765.98,0.00035616,10]
[402087027,1768515053610,-500.0,0.00035616,10]
[402087028,1768515053620,-500.0,0.00035616,10]
[402087029,1768515053630,-500.0,0.00035616,10]
[402087030,1768515053639,-526.38,0.00035616,10]
[402087031,1768515053649,-640.34,0.00035616,10]
[402087032,1768515053658,-798.98,0.00035616,10]
[402087033,1768515053668,-500.0,0.00035616,10]
[402087034,1768515053677,-500.0,0.00035616,10]
[402087035,1768515053686,-1470.18,0.00035616,10]
[402087036,1768515053696,-583.61497009,0.00035616,10]
[402087037,1768515053705,-500.0,0.00035616,10]
[402087038,1768515053714,-500.0,0.00035616,10]
[402087039,1768515053723,-179.263514,0.00035616,10]
[402087040,1768515053732,-1358.31,0.00035616,10]
[402087041,1768515053742,-577.56424765,0.00035616,10]
[402087042,1768515053752,-2042.44,0.00035616,10]
[402087043,1768515053761,-614.07,0.00035616,10]
[402087044,1768515053770,-500.0,0.00035616,10]
[402087045,1768515053779,-626.76395244,0.00035616,10]
[402087046,1768515053788,-500.0,0.00035616,10]
[402087047,1768515053797,-500.0,0.00035616,10]
[402087048,1768515053807,-563.1835662,0.00035616,10]
[402087049,1768515053815,-625.66,0.00035616,10]
[402087050,1768515053825,-582.53,0.00035616,10]
[402087051,1768515053834,-500.0,0.00035616,10]
[402087052,1768515053843,-500.0,0.00035616,10]
[402087053,1768515053854,-677.77,0.00035616,10]
[402087054,1768515053863,-986.16,0.00035616,10]
[402087055,1768515053872,-500.0,0.00035616,10]
[402087056,1768515053881,-947.53,0.00035616,10]
[402087057,1768515053891,-500.0,0.00035616,10]
[402087058,1768515053900,-500.0,0.00035616,10]
[402087059,1768515053909,-500.0,0.00035616,10]
[402087060,1768515053919,-848.65,0.00035616,10]
[402087061,1768515053928,-500.0,0.00035616,10]
[402087062,1768515053938,-500.0,0.00035616,10]
[402087063,1768515053947,-500.0,0.00035616,10]
[402087064,1768515053956,-500.0,0.00035616,10]
[402087065,1768515053965,-691.12,0.00035616,10]
[402087066,1768515053975,-158.393184,0.00035616,10]
[402087067,1768515053984,-603.42,0.00035616,10]
[402087068,1768515053997,-2720.25,0.00035616,10]
[402087069,1768515054007,-232.38313267,0.00035616,10]
[402087070,1768515054016,-1116.91,0.00035616,10]
[402087071,1768515054026,-500.0,0.00035616,10]
[402087072,1768515054037,-750.59,0.00035616,10]
[402087073,1768515054047,-500.0,0.00035616,10]
[402087074,1768515054056,-155.306841,0.00035616,10]
[402087075,1768515054065,-1038.06,0.00035616,10]
[402087076,1768515054075,-500.0,0.00035616,10]
[402087077,1768515054084,-167.425482,0.00035616,10]
[402087078,1768515054093,-500.0,0.00035616,10]
[402087079,1768515054103,-500.0,0.00035616,10]
[402087080,1768515054112,-500.0,0.00035616,10]
[402087081,1768515054121,-500.0,0.00035616,10]
[402087082,1768515054130,-640.95,0.00035616,10]
[402087083,1768515054139,-158.92510858,0.00035616,10]
[402087084,1768515054149,-500.0,0.00035616,10]
[402087085,1768515054158,-500.0,0.00035616,10]
[402087086,1768515054167,-500.0,0.00035616,10]
[402087087,1768515054176,-742.07,0.00035616,10]
[402087088,1768515054185,-578.10498113,0.00035616,10]
[402087089,1768515054194,-500.0,0.00035616,10]
[402087090,1768515054203,-500.0,0.00035616,10]
[402087091,1768515054212,-1213.75,0.00035616,10]
[402087092,1768515054221,-500.0,0.00035616,10]
[402087093,1768515054232,-500.0,0.00035616,10]
[402087094,1768515054241,-500.0,0.00035616,10]
[402087095,1768515054250,-522.97,0.00035616,10]
[402087096,1768515054260,-904.1,0.00035616,10]
[402087097,1768515054269,-500.0,0.00035616,10]
[402087098,1768515054279,-500.0,0.00035616,10]
[402087099,1768515054288,-500.0,0.00035616,10]
[402087100,1768515054297,-500.0,0.00035616,10]
[402087101,1768515054306,-500.0,0.00035616,10]
[402087102,1768515054315,-500.0,0.00035616,10]
[402087103,1768515054325,-500.0,0.00035616,10]
[402087104,1768515054334,-500.0,0.00035616,10]
[402087105,1768515054343,-598.86361782,0.00035616,10]
[402087106,1768515054352,-899.56,0.00035616,10]
[402087107,1768515054361,-500.0,0.00035616,10]
[402087108,1768515054370,-500.0,0.00035616,10]
[402087109,1768515054379,-507.54396168,0.00035616,10]
[402087110,1768515054389,-500.0,0.00035616,10]
[402087111,1768515054398,-500.0,0.00035616,10]
[402087112,1768515054407,-1294.66,0.00035616,10]
[402087113,1768515054417,-500.0,0.00035616,10]
[402087114,1768515054426,-2075.74,0.00035616,10]
[402087115,1768515054435,-842.64,0.00035616,10]
[402087116,1768515054444,-500.0,0.00035616,10]
[402087117,1768515054453,-818.62,0.00035616,10]
[402087118,1768515054463,-507.25528651,0.00035616,10]
[402087119,1768515054472,-500.0,0.00035616,10]
[402087120,1768515054481,-776.19,0.00035616,10]
[402087121,1768515054491,-1098.9,0.00035616,10]
[402087122,1768515054500,-500.0,0.00035616,10]
[402087123,1768515054509,-500.0,0.00035616,10]
[402087124,1768515054518,-821.07,0.00035616,10]
[402087125,1768515054527,-699.44,0.00035616,10]
[402087126,1768515054536,-500.0,0.00035616,10]
[402087127,1768515054546,-500.0,0.00035616,10]
[402087128,1768515054555,-500.0,0.00035616,10]
[402087129,1768515054565,-500.0,0.00035616,10]
[402087130,1768515054574,-649.39,0.00035616,10]
[402087131,1768515054583,-500.0,0.00035616,10]
[402087132,1768515054593,-627.85,0.00035616,10]
[402087133,1768515054602,-353.82258907,0.00035616,10]
[402087134,1768515054611,-448.91291076,0.00035616,10]
[402087135,1768515054620,-1369.09,0.00035616,10]
[402087136,1768515054630,-365.37651882,0.00035616,10]
[402087137,1768515054639,-1073.04,0.00035616,10]
[402087138,1768515054648,-500.0,0.00035616,10]
[402087139,1768515054657,-500.0,0.00035616,10]
[402087140,1768515054666,-500.0,0.00035616,10]
[402087141,1768515054675,-500.0,0.00035616,10]
[402087142,1768515054684,-500.0,0.00035616,10]
[402087143,1768515054694,-835.32,0.00035616,10]
[402087144,1768515054703,-382.0582518,0.00035616,10]
[402087145,1768515054712,-568.65753776,0.00035616,10]
[402087146,1768515054721,-813.27,0.00035616,10]
[402087147,1768515054731,-503.11,0.00035616,10]
[402087148,1768515054740,-502.72,0.00035616,10]
[402087149,1768515054749,-500.0,0.00035616,10]
[402087150,1768515054758,-463.67953969,0.00035616,10]
[402087151,1768515054767,-500.0,0.00035616,10]
[402087152,1768515054776,-576.61479929,0.00035616,10]
[402087153,1768515054785,-577.75475583,0.00035616,10]
[402087154,1768515054795,-561.67527192,0.00035616,10]
[402087155,1768515054804,-400.0,0.00035616,10]
[402087156,1768515054813,-500.0,0.00035616,10]
[402087157,1768515054822,-785.26,0.00035616,10]
[402087158,1768515054831,-500.0,0.00035616,10]
[402087159,1768515054840,-585.00984787,0.00035616,10]
[402087160,1768515054849,-970.63,0.00035616,10]
[402087161,1768515054858,-575.86,0.00035616,10]
[402087162,1768515054867,-500.0,0.00035616,10]
[402087163,1768515054877,-529.58720005,0.00035616,10]
[402087164,1768515054885,-516.11,0.00035616,10]
[402087165,1768515054894,-500.0,0.00035616,10]
[402087166,1768515054903,-621.33760418,0.00035616,10]
[402087167,1768515054913,-622.54,0.00035616,10]
[402087168,1768515054922,-500.0,0.00035616,10]
[402087169,1768515054931,-619.77,0.00035616,10]
[402087170,1768515054941,-500.0,0.00035616,10]
[402087171,1768515054950,-500.0,0.00035616,10]
[402087172,1768515054959,-500.0,0.00035616,10]
[402087173,1768515054969,-505.40475523,0.00035616,10]
[402087174,1768515054979,-1522.31,0.00035616,10]
[402087175,1768515054988,-629.85,0.00035616,10]
[402087176,1768515054998,-500.0,0.00035616,10]
[402087177,1768515055013,-500.0,0.00035616,10]
[402087178,1768515055021,-639.45,0.00035616,10]
[402087179,1768515055031,-2022.58,0.00035616,10]
[402087180,1768515055040,-512.52,0.00035616,10]
[402087181,1768515055051,-300.0,0.00035616,2]
[402087182,1768515055060,-585.55,0.00035616,10]
[402087183,1768515055071,-739.69,0.00035616,10]
[402087184,1768515055089,-1299.58,0.00035616,10]
[402087185,1768515055099,-623.16596688,0.00035616,10]
[402087186,1768515055108,-738.74,0.00035616,10]
[402087187,1768515055117,-500.0,0.00035616,10]
[402087188,1768515055126,-500.0,0.00035616,10]
[402087189,1768515055135,-500.0,0.00035616,10]
[402087190,1768515055144,-595.52163215,0.00035616,10]
[402087191,1768515055153,-189.33700006,0.00035616,10]
[402087192,1768515055163,-500.0,0.00035616,10]
[402087193,1768515055174,-1366.19,0.00035616,10]
[402087194,1768515055183,-500.0,0.00035616,10]
[402087195,1768515055192,-500.0,0.00035616,10]
[402087196,1768515055201,-500.0,0.00035616,10]
[402087197,1768515055210,-500.0,0.00035616,10]
[402087198,1768515055219,-500.0,0.00035616,10]
[402087199,1768515055228,-569.13980156,0.00035616,10]
[402087200,1768515055237,-500.0,0.00035616,10]
[402087201,1768515055246,-500.0,0.00035616,10]
[402087202,1768515055255,-662.72,0.00035616,10]
[402087203,1768515055264,-785.06,0.00035616,10]
[402087204,1768515055273,-1196.03,0.00035616,10]
[402087205,1768515055282,-500.0,0.00035616,10]
[402087206,1768515055291,-668.57,0.00035616,10]
[402087207,1768515055300,-500.0,0.00035616,10]
[402087208,1768515055309,-1124.65,0.00035616,10]
[402087209,1768515055318,-500.0,0.00035616,10]
[402087210,1768515055327,-777.59,0.00035616,10]
[402087211,1768515055337,-1705.15,0.00035616,10]
[402087212,1768515055346,-759.01,0.00035616,10]
[402087213,1768515055355,-575.07495134,0.00035616,10]
[402087214,1768515055364,-500.0,0.00035616,10]
[402087215,1768515055581,-500.0,0.00035616,10]
[402087216,1768515055591,-500.0,0.00035616,10]
[402087217,1768515055600,-989.09,0.00035616,10]
[402087218,1768515055609,-847.3,0.00035616,10]
[402087219,1768515055619,-635.17,0.00035616,10]
[402087220,1768515055628,-500.0,0.00035616,10]
[402087221,1768515055638,-577.53986698,0.00035616,10]
[402087222,1768515055647,-525.63,0.00035616,10]
[402087223,1768515055664,-500.0,0.00035616,10]
[402087224,1768515055677,-500.0,0.00035616,10]
[402087225,1768515055686,-500.0,0.00035616,10]
[402087226,1768515055696,-500.0,0.00035616,10]
[402087227,1768515055706,-1128.83,0.00035616,10]
[402087228,1768515055717,-1563.63,0.00035616,10]
[402087229,1768515055727,-500.0,0.00035616,10]
[402087230,1768515055736,-500.0,0.00035616,10]
[402087231,1768515055746,-768.85,0.00035616,10]
[402087232,1768515055756,-500.0,0.00035616,10]
[402087233,1768515055765,-500.0,0.00035616,10]
[402087234,1768515055775,-500.0,0.00035616,10]
[402087235,1768515055785,-500.0,0.00035616,10]
[402087236,1768515055794,-1012.62,0.00035616,10]
[402087237,1768515055803,-500.0,0.00035616,10]
[402087238,1768515055813,-170.87863228,0.00035616,10]
[402087239,1768515055822,-558.7,0.00035616,10]
[402087240,1768515055831,-500.0,0.00035616,10]
[402087241,1768515055841,-500.0,0.00035616,10]
[402087242,1768515055850,-1861.71,0.00035616,10]
[402087243,1768515055859,-500.0,0.00035616,10]
[402087244,1768515055869,-500.0,0.00035616,10]
[402087245,1768515055877,-587.49902003,0.00035616,10]
[402087246,1768515055887,-513.31,0.00035616,10]
[402087247,1768515055896,-811.0,0.00035616,10]
[402087248,1768515055905,-846.34,0.00035616,10]
[402087249,1768515055914,-702.14,0.00035616,10]
[402087250,1768515055923,-504.55,0.00035616,10]
[402087251,1768515055933,-1222.04,0.00035616,10]
[402087252,1768515055943,-2208.42,0.00035616,10]
[402087253,1768515055953,-613.84,0.00035616,10]
[402087254,1768515055963,-500.0,0.00035616,10]
[402087255,1768515055972,-500.0,0.00035616,10]
[402087256,1768515055982,-858.76,0.00035616,10]
[402087257,1768515055993,-500.0,0.00035616,10]
[402087258,1768515056005,-552.84978525,0.00035616,10]
[402087259,1768515056018,-500.0,0.00035616,10]
[402087260,1768515056028,-500.0,0.00035616,10]
[402087261,1768515056042,-923.2,0.00035616,10]
[402087262,1768515056052,-500.0,0.00035616,10]
[402087263,1768515056062,-1468.54,0.00035616,10]
[402087264,1768515056072,-2000.51,0.00035616,10]
[402087265,1768515056083,-1004.43,0.00035616,10]
[402087266,1768515056092,-606.34,0.00035616,10]
[402087267,1768515056103,-473.63445031,0.00035616,10]
[402087268,1768515056113,-209.12987817,0.00035616,10]
[402087269,1768515056123,-497.39899657,0.00035616,10]
[402087270,1768515056133,-1326.62,0.00035616,10]
[402087271,1768515056143,-619.60833687,0.00035616,10]
[402087272,1768515056153,-1242.83,0.00035616,10]
[402087273,1768515056162,-500.0,0.00035616,10]
[402087274,1768515056172,-4290.39,0.00035616,10]
[402087275,1768515056181,-1429.1,0.00035616,10]
[402087276,1768515056191,-500.0,0.00035616,10]
[402087277,1768515056201,-500.0,0.00035616,10]
[402087278,1768515056211,-500.0,0.00035616,10]
[402087279,1768515056221,-576.52117514,0.00035616,10]
[402087280,1768515056230,-620.54,0.00035616,10]
[402087281,1768515056240,-615.11,0.00035616,10]
[402087282,1768515056249,-4636.45,0.00035616,10]
[402087283,1768515056259,-951.25,0.00035616,10]
[402087284,1768515056270,-572.03,0.00035616,10]
[402087285,1768515056280,-530.93,0.00035616,10]
[402087286,1768515056290,-1743.7,0.00035616,10]
[402087287,1768515056299,-1244.25,0.00035616,10]
[402087288,1768515056308,-500.0,0.00035616,10]
[402087289,1768515056318,-500.0,0.00035616,10]
[402087290,1768515056328,-500.0,0.00035616,10]
[402087291,1768515056337,-619.00582618,0.00035616,10]
[402087292,1768515056347,-1449.29,0.00035616,10]
[402087293,1768515056356,-1397.61,0.00035616,10]
[402087294,1768515056366,-500.0,0.00035616,10]
[402087295,1768515056375,-548.34,0.00035616,10]
[402087296,1768515056384,-627.72,0.00035616,10]
[402087297,1768515056399,-500.0,0.00035616,10]
[402087298,1768515056408,-998.3,0.00035616,10]
[402087299,1768515056418,-1048.85,0.00035616,10]
[402087300,1768515056428,-501.0,0.00035616,10]
[402087301,1768515056438,-621.75,0.00035616,10]
[402087302,1768515056448,-500.0,0.00035616,10]
[402087303,1768515056458,-500.0,0.00035616,10]
[402087304,1768515056468,-1082.71,0.00035616,10]
[402087305,1768515056478,-500.0,0.00035616,10]
[402087306,1768515056488,-500.0,0.00035616,10]
[402087307,1768515056498,-1384.4,0.00035616,10]
[402087308,1768515056508,-559.40972453,0.00035616,10]
[402087309,1768515056519,-587.62563927,0.00035616,10]
[402087310,1768515056529,-512.82,0.00035616,10]
[402087311,1768515056539,-500.0,0.00035616,10]
[402087312,1768515056549,-500.0,0.00035616,10]
[402087313,1768515056559,-1516.87,0.00035616,10]
[402087314,1768515056569,-1335.99,0.00035616,10]
[402087315,1768515056579,-500.0,0.00035616,10]
[402087316,1768515056588,-500.0,0.00035616,120]
[402087317,1768515056598,-500.0,0.00035616,10]
[402087318,1768515056608,-500.0,0.00035616,10]
[402087319,1768515056619,-943.05,0.00035616,10]
[402087320,1768515056629,-1200.68,0.00035616,10]
[402087321,1768515056639,-759.06,0.00035616,10]
[402087322,1768515056651,-500.0,0.00035616,10]
[402087323,1768515056661,-400.0,0.00035616,10]
[402087324,1768515056671,-1199.38,0.00035616,10]
[402087325,1768515056680,-1165.95,0.00035616,10]
[402087326,1768515056691,-1386.85,0.00035616,10]
[402087327,1768515056701,-500.0,0.00035616,10]
[402087328,1768515056711,-1207.06,0.00035616,10]
[402087329,1768515056721,-899.18,0.00035616,10]
[402087330,1768515056730,-500.0,0.00035616,10]
[402087331,1768515056740,-500.0,0.00035616,10]
[402087332,1768515056754,-1137.65,0.00035616,10]
[402087333,1768515056765,-500.0,0.00035616,10]
[402087334,1768515056775,-500.0,0.00035616,10]
[402087335,1768515056785,-1526.79,0.00035616,10]
[402087336,1768515056795,-500.0,0.00035616,10]
[402087337,1768515056804,-500.0,0.00035616,10]
[402087338,1768515056814,-528.29,0.00035616,10]
[402087339,1768515056824,-645.98159977,0.00035616,2]
[402087340,1768515056834,-500.0,0.00035616,10]
[402087341,1768515056844,-500.0,0.00035616,10]
[402087342,1768515056854,-500.0,0.00035616,10]
[402087343,1768515056864,-607.84,0.00035616,10]
[402087344,1768515056874,-500.0,0.00035616,10]
[402087345,1768515056884,-500.0,0.00035616,10]
[402087346,1768515056894,-500.0,0.00035616,10]
[402087347,1768515056904,-1150.92,0.00035616,10]
[402087348,1768515056915,-624.84,0.00035616,10]
[402087349,1768515056925,-500.0,0.00035616,10]
[402087350,1768515056935,-574.87584551,0.00035616,10]
[402087351,1768515056945,-500.0,0.00035616,10]
[402087352,1768515056954,-500.0,0.00035616,10]
[402087353,1768515056964,-500.0,0.00035616,10]
[402087354,1768515056975,-500.0,0.00035616,10]
[402087355,1768515056984,-500.0,0.00035616,10]
[402087356,1768515056997,-2592.8,0.00035616,10]
[402087357,1768515057007,-500.0,0.00035616,10]
[402087358,1768515057018,-1195.15,0.00035616,10]
[402087359,1768515057028,-500.0,0.00035616,10]
[402087360,1768515057039,-1622.17,0.00035616,10]
[402087361,1768515057049,-500.0,0.00035616,10]
[402087362,1768515057059,-500.0,0.00035616,10]
[402087363,1768515057068,-2037.68,0.00035616,10]
[402087364,1768515057079,-1403.74,0.00035616,10]
[402087365,1768515057088,-500.0,0.00035616,10]
[402087366,1768515057098,-1487.44,0.00035616,10]
[402087367,1768515057108,-806.52,0.00035616,10]
[402087368,1768515057121,-583.28,0.00035616,10]
[402087369,1768515057131,-581.10517041,0.00035616,10]
[402087370,1768515057141,-500.0,0.00035616,10]
[402087371,1768515057151,-3653.99,0.00035616,10]
[402087372,1768515057161,-500.0,0.00035616,10]
[402087373,1768515057171,-500.0,0.00035616,10]
[402087374,1768515057180,-867.55,0.00035616,10]
[402087375,1768515057190,-2040.71,0.00035616,10]
[402087376,1768515057200,-738.59,0.00035616,10]
[402087377,1768515057211,-4418.41,0.00035616,10]
[402087378,1768515057221,-1258.66,0.00035616,10]
[402087379,1768515057232,-647.23,0.00035616,10]
[402087380,1768515057241,-1152.47,0.00035616,10]
[402087381,1768515057251,-500.0,0.00035616,10]
[402087382,1768515057261,-500.0,0.00035616,10]
[402087383,1768515057271,-575.1,0.00035616,10]
[402087384,1768515057280,-965.14,0.00035616,10]
[402087385,1768515057291,-500.0,0.00035616,10]
[402087386,1768515057300,-500.0,0.00035616,10]
[402087387,1768515057310,-661.26,0.00035616,10]
[402087388,1768515057323,-1124.29,0.00035616,10]
[402087389,1768515057333,-500.0,0.00035616,10]
[402087390,1768515057343,-1856.9,0.00035616,10]
[402087391,1768515057353,-500.0,0.00035616,10]
[402087392,1768515057364,-500.0,0.00035616,10]
[402087393,1768515057374,-500.0,0.00035616,10]
[402087394,1768515057384,-500.0,0.00035616,10]
[402087395,1768515057394,-500.0,0.00035616,10]
[402087396,1768515057404,-500.0,0.00035616,10]
[402087397,1768515057413,-500.0,0.00035616,10]
[402087398,1768515057423,-563.07,0.00035616,10]
[402087399,1768515057432,-1785.0,0.00035616,10]
[402087400,1768515057443,-500.0,0.00035616,10]
[402087401,1768515057453,-1094.37,0.00035616,10]
[402087402,1768515057463,-500.0,0.00035616,10]
[402087403,1768515057473,-693.79,0.00035616,10]
[402087404,1768515057483,-500.0,0.00035616,10]
[402087405,1768515057492,-500.0,0.00035616,10]
[402087406,1768515057502,-685.0,0.00035616,10]
[402087407,1768515057514,-509.93279433,0.00035616,10]
[402087408,1768515057524,-500.0,0.00035616,10]
[402087409,1768515057533,-500.0,0.00035616,10]
[402087410,1768515057543,-500.0,0.00035616,10]
[402087411,1768515057553,-500.0,0.00035616,10]
[402087412,1768515057563,-739.59,0.00035616,10]
[402087413,1768515057573,-1005.13,0.00035616,10]
[402087414,1768515057583,-674.92,0.00035616,10]
[402087415,1768515057593,-719.38,0.00035616,10]
[402087416,1768515057603,-727.9,0.00035616,10]
[402087417,1768515057613,-1860.51,0.00035616,10]
[402087418,1768515057623,-1279.4,0.00035616,10]
[402087419,1768515057633,-500.0,0.00035616,10]
[402087420,1768515057642,-500.0,0.00035616,10]
[402087421,1768515057652,-1278.53,0.00035616,10]
[402087422,1768515057662,-500.0,0.00035616,10]
[402087423,1768515057671,-500.0,0.00035616,10]
[402087424,1768515057681,-500.0,0.00035616,10]
[402087425,1768515057690,-1503.26,0.00035616,10]
[402087426,1768515057700,-500.0,0.00035616,10]
[402087427,1768515057710,-500.0,0.00035616,10]
[402087428,1768515057720,-2292.42,0.00035616,10]
[402087429,1768515057729,-1095.31,0.00035616,10]
[402087430,1768515057739,-618.39,0.00035616,10]
[402087431,1768515057749,-500.0,0.00035616,10]
[402087432,1768515057759,-559.73663643,0.00035616,10]
[402087433,1768515057771,-746.48,0.00035616,10]
[402087434,1768515057781,-500.0,0.00035616,10]
[402087435,1768515057791,-500.0,0.00035616,10]
[402087436,1768515057801,-500.0,0.00035616,10]
[402087437,1768515057811,-1531.22,0.00035616,10]
[402087438,1768515057822,-1027.16,0.00035616,10]
[402087439,1768515057831,-500.0,0.00035616,10]
[402087440,1768515057841,-500.0,0.00035616,10]
[402087441,1768515057851,-500.0,0.00035616,10]
[402087442,1768515057860,-561.93461588,0.00035616,10]
[402087443,1768515057869,-486.44234255,0.00035616,10]
[402087444,1768515057880,-856.39,0.00035616,10]
[402087445,1768515057897,-1586.0,0.00035616,10]
[402087446,1768515057911,-1336.74,0.00035616,10]
[402087447,1768515057922,-500.0,0.00035616,10]
[402087448,1768515057933,-787.18,0.00035616,10]
[402087449,1768515057944,-500.0,0.00035616,10]
[402087450,1768515057954,-500.0,0.00035616,10]
[402087451,1768515057967,-500.0,0.00035616,10]
[402087452,1768515057977,-500.0,0.00035616,10]